Cogmind - Beta 13 @@@ ROGUE MODE // 2024.07.12 @ 02:00:15 Player: ThatBishHoly Result: Destroyed by 48-WJZ(R) with Subdweller Machine Gun Performance ------------- Evolutions (0) 0 Regions Visited (3) 600 Robots Destroyed (5) 25 Value Destroyed (212) 212 Prototype IDs (2) 40 Alien Tech Used (0) 0 Bonus (0) 0 TOTAL SCORE: 877 Bonus ------- None Cogmind --------- Core Integrity 0/250 Matter 193/300 Energy 200/200 System Corruption 2% Temperature Cool (0) Movement Core (100) Ox1 Location -10/Subcaves Parts ------- > --- POWER (1) -------- Subdweller Power Source > --- PROPULSION (2) --- (None) > --- UTILITY (2) ------ Targeting Computer > --- WEAPON (2) ------- Light Assault Rifle > --- INVENTORY (5) ---- High-capacity Storage Unit Medium Matter Pod (13) Peak State ------------ > --- POWER ------------ Subdweller Power Source > --- PROPULSION ------- Compact Wheel Compact Wheel > --- UTILITY ---------- High-capacity Storage Unit > --- WEAPON ----------- Assault Rifle Light Assault Rifle > --- INVENTORY -------- Medium Matter Pod Targeting Computer Grenade Launcher Stasis Trap Stasis Trap Stasis Trap [Rating: 7] Favorites ----------- Power Subdweller Power Source Engine Subdweller Power Source Propulsion Compact Wheel Wheel Compact Wheel Utility High-capacity Storage Unit Storage High-capacity Storage Unit Processor Targeting Computer Weapon Assault Rifle Ballistic Gun Assault Rifle Launcher Grenade Launcher Build | -11 -10 -10 -10 ------- Run | Yrd Mat Min Sub Slots Evolved . | . . . . Power . | . . . . Propulsion . | . . . . Utility . | . . . . Weapon . | . . . . Parts Attached 12 | 5 1 1 5 Power 1 | . . . 1 Engine 1 | . . . 1 Core . | . . . . Reactor . | . . . . Propulsion 2 | 2 . . . Treads . | . . . . Leg . | . . . . Wheel 2 | 2 . . . Hover . | . . . . Flight . | . . . . Utility 3 | 1 . 1 1 Device . | . . . . Storage 2 | 1 . 1 . Processor 1 | . . . 1 Hackware . | . . . . Protection . | . . . . Artifact . | . . . . Weapon 6 | 2 1 . 3 Energy Gun . | . . . . Energy Cannon . | . . . . Ballistic Gun 4 | 2 . . 2 Ballistic Cannon . | . . . . Launcher 2 | . 1 . 1 Special Weapon . | . . . . Impact Weapon . | . . . . Slashing Weapon . | . . . . Piercing Weapon . | . . . . Special Melee Weapon . | . . . . Unidentified Prototypes . | . . . . Parts Lost 4 | . . . 4 Power . | . . . . Propulsion 2 | . . . 2 Utility . | . . . . Weapon 2 | . . . 2 Highest Loss Streak 4 | . . . 4 To Critical Strikes . | . . . . Average Slot Usage (%) 71 | . 71 71 74 Engine 2 | . . . 12 Wheel 26 | . 28 28 22 Storage 13 | . 14 14 12 Ballistic Gun 17 | . 23 14 22 Launcher 9 | . 4 14 3 Naked Turns . | . . . . Heaviest Build 50 | 8 10 45 50 Greatest Support 32 | 32 32 32 32 Greatest Overweight (x) 15 | . . 1 15 Average Overweight (x) . | . . . 1 Largest Inventory Capacity 20 | 8 8 20 20 Average Capacity 15 | 7 8 17 18 Most Carried 7 | 5 2 6 7 Average Carried 3 | . . 3 5 Final Capacity 20 | 8 8 20 5 Final Carried 6 | . 2 6 2 Class Distribution -------------------- 100% | Mutant Dominant Class ---------------- Mutant | -10/Materials Mutant | -10/Mines Mutant | -10/Subcaves Resources | -11 -10 -10 -10 ----------- Run | Yrd Mat Min Sub Matter Collected 372 | 240 . 110 22 Remotely . | . . . . Salvage Created 127 | . . 105 22 Parts 4 | . . 2 2 Haulers Intercepted . | . . . . Recyclers Shooed . | . . . . Parts Field Recycled . | . . . . Retrieved Matter . | . . . . Parts Self-Destructed . | . . . . Prevented . | . . . . Kills | -11 -10 -10 -10 ------- Run | Yrd Mat Min Sub Combat Hostiles Destroyed 5 | . . 4 1 Guns 1 | . . . 1 AOE 4 | . . 4 . Classes Destroyed 2 | . . 1 1 Grunt 4 | . . 4 . Subdweller 1 | . . . 1 Best Kill Streak 2 | . . 2 1 Combat Bots Only 2 | . . 2 1 Max Kills in Single Turn 2 | . . 2 1 Gunslinging . | . . . . Exploded 2 | . . 2 . Melee . | . . . . Uniques/NPCs Destroyed . | . . . . Combat | -11 -10 -10 -10 -------- Run | Yrd Mat Min Sub Hostile Shots Fired 41 | . 1 7 33 Missed 16 | . 1 3 12 Damage Taken 654 | . 2 52 600 Core 257 | . . 28 229 Absorbed by Shields . | . . . . Core Remaining (%) 100 | 100 . . . Volleys Fired 24 | . 1 5 18 Largest 2 | . 1 2 2 Hottest 50 | . 30 50 50 Shots Fired 35 | . 1 10 24 Gun 22 | . . 5 17 Cannon . | . . . . Launcher 13 | . 1 5 7 Special . | . . . . Kinetic 22 | . . 5 17 Thermal . | . . . . Explosive 13 | . 1 5 7 Electromagnetic . | . . . . Robot Hit Streak 5 | . . 3 5 Robot Miss Streak 1 | . . 1 1 Penetration Max . | . . . . Secondary Targets . | . . . . Shots Hit Robots 14 | . . 4 10 Core Hits 13 | . . 7 6 Critical Kills . | . . . . Critical Parts Destroyed . | . . . . Critical Strikes . | . . . . Melee Attacks . | . . . . Impact . | . . . . Slashing . | . . . . Piercing . | . . . . Sneak Attacks . | . . . . Combat Hostiles . | . . . . Follow-up Attacks . | . . . . Damage Inflicted 553 | . 4 360 189 Guns 125 | . . 24 101 Cannons . | . . . . Explosions 423 | . . 335 88 Melee . | . . . . Ramming 5 | . 4 1 . Kinetic 125 | . . 24 101 Thermal . | . . . . Explosive 423 | . . 335 88 Electromagnetic . | . . . . Impact . | . . . . Slashing . | . . . . Piercing . | . . . . Highest Corruption 2 | . . . 2 Average Corruption 2 | . . . 2 Corruption Purged . | . . . . Corruption Blocked . | . . . . Effects 1 | . . . 1 Energy Discharges 1 | . . . 1 Overload Shots . | . . . . Overflow Damage 9 | . . . 9 Projectiles . | . . . . Explosions 9 | . . . 9 Melee . | . . . . Knockbacks . | . . . . Impact . | . . . . Kinetic . | . . . . Secondary . | . . . . Self-Inflicted Damage 53 | . 2 . 51 Shots 2 | . . . 2 Rammed 3 | . 1 2 . Targets Rammed 3 | . 1 2 . Kicked . | . . . . Crushed . | . . . . Highest Temperature . | . . . . Average Temperature . | . . . . Received Heat Transfer 75 | . . 30 45 Siege Activations . | . . . . Robots Corrupted . | . . . . Combat Hostiles . | . . . . Parts Fried . | . . . . Impact Corruptions . | . . . . Robots Melted . | . . . . Combat Hostiles . | . . . . Parts Melted . | . . . . Heat Transferred . | . . . . Parts Sabotaged . | . . . . Parts Stolen . | . . . . Parts Stripped . | . . . . Power Chain Reactions . | . . . . Alert | -11 -10 -10 -10 ------- Run | Yrd Mat Min Sub Peak Influence 91 | . 73 91 . Initial 28 | . . 28 . Average 64 | . 15 81 . Maximum Alert Level . | . . . . Low Security (%) 100 | 100 100 100 . Level 1 . | . . . . Level 2 . | . . . . Level 3 . | . . . . Level 4 . | . . . . Level 5 . | . . . . High Security . | . . . . Max Security . | . . . . Squads Dispatched 1 | . 1 . . Investigation 1 | . 1 . . Extermination . | . . . . Reinforcement . | . . . . Assault . | . . . . Garrison . | . . . . Intercept . | . . . . Searches Triggered . | . . . . Construction Impeded . | . . . . Haulers Reinforced . | . . . . Active Scanning Responses . | . . . . Cargo Convoy Interrupts . | . . . . Stealth | -11 -10 -10 -10 --------- Run | Yrd Mat Min Sub Distress Signals . | . . . . Communications Jammed . | . . . . Distress Signals . | . . . . Times Spotted 8 | . 1 4 3 Peak Tracking Total 2 | . 2 2 2 Tactical Retreats . | . . . . Traps | -11 -10 -10 -10 ------- Run | Yrd Mat Min Sub Traps Triggered 1 | . 1 . . Indirectly . | . . . . Trap Hack Attempts . | . . . . Triggered . | . . . . Disarmed . | . . . . Reprogrammed . | . . . . Reused 1 | . . . 1 Traps Extracted . | . . . . Installed 2 | . . . 2 Triggered . | . . . . Most Traps Carried 3 | . . 3 3 Machines | -11 -10 -10 -10 ---------- Run | Yrd Mat Min Sub Machines Disabled 1 | . 1 . . Max in Single Turn 1 | . 1 . . Machines Repaired . | . . . . Machines Dismantled . | . . . . Machines Sabotaged . | . . . . Overloaded Fab Kills . | . . . . Hacking | -11 -10 -10 -10 --------- Run | Yrd Mat Min Sub Machines Accessed 3 | . 3 . . Terminals 3 | . 3 . . Fabricators . | . . . . Repair Stations . | . . . . Recycling Units . | . . . . Scanalyzers . | . . . . Garrison Access . | . . . . Total Hacks 6 | . 6 . . Successful 5 | . 5 . . Failed 1 | . 1 . . Catastrophic . | . . . . Database Lockouts . | . . . . Manual . | . . . . Terminals 6 | . 6 . . Fabricators . | . . . . Repair Stations . | . . . . Recycling Units . | . . . . Scanalyzers . | . . . . Garrison Access . | . . . . Terminal Hacks 5 | . 5 . . Record 1 | . 1 . . Prototype ID Bank 1 | . 1 . . Branch Access Points 1 | . 1 . . Hauler Manifests 1 | . 1 . . Zone Layout 1 | . 1 . . Fabricator Hacks . | . . . . Repair Station Hacks . | . . . . Recycling Unit Hacks . | . . . . Scanalyzer . | . . . . Garrison Access Hacks . | . . . . Unauthorized Hacks . | . . . . Terminals . | . . . . Fabricators . | . . . . Repair Stations . | . . . . Recycling Units . | . . . . Scanalyzers . | . . . . Garrison Access . | . . . . Data Cores Recovered . | . . . . Used . | . . . . Hacking Detections 3 | . 3 . . Full Trace Events . | . . . . Feedback Events . | . . . . Feedback Blocked . | . . . . Robot Schematics Acquired . | . . . . Robots Built . | . . . . Authchips . | . . . . Time . | . . . . Total Robot Build Rating . | . . . . Part Schematics Acquired . | . . . . Parts Built . | . . . . Authchips . | . . . . Time . | . . . . Total Part Build Rating . | . . . . Parts Repaired . | . . . . Time . | . . . . Parts Recycled . | . . . . Recycled Matter . | . . . . Retrieved Matter . | . . . . Retrieved Components . | . . . . Parts Scanalyzed . | . . . . Part Schematics Acquired . | . . . . Parts Damaged . | . . . . Bothacking | -11 -10 -10 -10 ------------ Run | Yrd Mat Min Sub Used RIF Installer . | . . . . Robots Hacked . | . . . . Non-combat . | . . . . Combat . | . . . . Robot Hacks Applied . | . . . . Relay Couplers Released . | . . . . Fabnet Peak Effective % . | . . . . Robots Rewired . | . . . . Allies Hacked . | . . . . Hacks Repelled . | . . . . Allies | -11 -10 -10 -10 -------- Run | Yrd Mat Min Sub Total Allies . | . . . . Largest Group . | . . . . Highest-Rated Group . | . . . . Highest-Rated Ally . | . . . . Total Orders . | . . . . Ally Attacks . | . . . . Total Damage . | . . . . Kills . | . . . . Allies Corrupted . | . . . . Allies Melted . | . . . . Intel | -11 -10 -10 -10 ------- Run | Yrd Mat Min Sub Robot Analysis Total . | . . . . Derelict Logs Recovered 1 | . . 1 . Drone Launches . | . . . . Drone Recoveries . | . . . . Exploration | -11 -10 -10 -10 ------------- Run | Yrd Mat Min Sub Turns Passed 1200 | 58 167 703 272 Spaces Moved 945 | 59 108 591 187 Core 41 | 21 . . 20 Treads . | . . . . Legs . | . . . . Wheels 904 | 38 108 591 167 Hover . | . . . . Flight . | . . . . Fastest Speed 50 | 50 100 100 100 Average Speed 109 | 82 100 111 118 Slowest Speed 800 | 100 100 115 800 Overloaded Moves . | . . . . Propulsion Burnouts . | . . . . Robots Hopped . | . . . . Cave-ins Triggered 1 | . . . 1 Exploration Rate (%) 31 | 4 18 95 10 Regions Visited 3 Branch Regions 2 Pre-discovered Areas . | . . . . Known Exits Taken 1 | . 1 . . Unknown Exits Taken 2 | 1 . 1 . Scrap Searched 3 | . . 3 . Spaces Dug 5 | . 5 . . Terrain Destroyed 102 | . 26 41 35 Melee . | . . . . Projectile . | . . . . AOE 102 | . 26 41 35 Terrain Rammed . | . . . . Walls Destroyed . | . . . . Machines Disabled . | . . . . Actions | -11 -10 -10 -10 --------- Run | Yrd Mat Min Sub Total 1076 | 68 165 626 217 Wait 75 | . 53 22 . Move 942 | 58 107 590 187 Hop . | . . . . Pick Up 13 | 5 2 5 1 Fast Attach . | . . . . Attach 8 | 5 . . 3 Detach 1 | . . . 1 Swap 4 | . 1 1 2 Drop 4 | . . 1 3 Fire 24 | . 1 5 18 Melee . | . . . . Ram 3 | . 1 2 . Kick . | . . . . Crush . | . . . . Escape Stasis . | . . . . Rewire . | . . . . Trap 2 | . . . 2 Miscellaneous . | . . . . Route ------- -11/Scrapyard -10/Materials -10/Mines (discovered 3 exits: [*Mat x2] / [*Sub]) -10/Subcaves History --------- Turn | Location | Event 6 | -11/Scrapyard | Discovered new exit (range 16) 59 | -11/Scrapyard | Entered Materials 169 | -10/Materials | Discovered new exit (range 15) 187 | -10/Materials | Identified exit to Mines 226 | -10/Materials | Entered Mines 233 | -10/Mines | Discovered new exit (range 7) 234 | -10/Mines | Learned Materials emergency access door positions 310 | -10/Mines | Build established: Mutant 567 | -10/Mines | Discovered new exit (range 15) 750 | -10/Mines | Found a hidden stash of uninstalled traps 914 | -10/Mines | Discovered new exit (range 15) 929 | -10/Mines | Entered Subcaves 1157 | -10/Subcaves | Crushed by falling debris 1167 | -10/Subcaves | Core integrity fell below 50% 1191 | -10/Subcaves | Lost 4 parts (2n2w) 1198 | -10/Subcaves | Core integrity fell below 20% 1201 | -10/Subcaves | Destroyed by 48-WJZ(R) with Subdweller Machine Gun Last Messages --------------- 01160_ Grenade Launcher destroyed. 01167_ Dropped Stasis Trap. 01168_ Installed Stasis Trap. 01174_ Dropped Stasis Trap. 01175_ Installed Stasis Trap. 01183_ 48-WJZ(R) triggered Stasis Trap. 01183_ A bubble of rippling energy engulfs the area. 01183_ Field strength at 90. 01185_ Field strength at 80. 01186_ Field strength at 70. 01187_ S7-C74(R) destroyed. 01189_ Field strength at 60. 01189_ Dropped Stasis Trap. 01190_ Field strength at 50. 01191_ Field strength at 40. 01192_ Field strength at 27. 01193_ Field strength at 17. 01194_ Field strength at 5. 01195_ System corrupted: Energy discharge (-72). 01195_ Stasis field depleted. Map ----- +----------------------------------------------------+ | ?????????????????????????????????????????????????? | | ?????????????????????????????????????????????????? | | ?????????????????????????????????????????????????? | | ?????????????????????????????????????????????????? | | ?????????????????????????????????????????????????? | | ?????????????????????????????????????????????????? | | ?????????????????????????????????????????????????? | | ?????????????????????????????????????????????????? | | ?????????????????????????????????????????????????? | | ???????????????????????????????#?????????????????? | | ????????????????????????????###"##???????????????? | | ???????????????????????????## """#???????????????? | | ???????????????????????????# """"#???????????????? | | ??????????????????????????##""""#????????????????? | | ?????????????????????????## " "#????????????????? | | ???????????????????????### "####?????????????? | | ??????????????????????## ^ #?????????????? | | ??????????????????????# " ## #????????? | | ????????????????????### R ## " #???????? | | ????????????????????# #???????? | | ????????????????????### &%!### ""?????? | | ?????????????????????#"" [ ##?## " " ?????? | | ?????????????????????# "" #???# " """??????? | | ?????????????????????# #???? #???????? | | ?????????????????????### ###???? #???????? | | ???##??????????????????# @ #??????? " ??????? | | ???#"????????????????### & #??????? ""??????? | | ???# ##??????????????# #??????? " " ??????? | | ???? ##?????????????# ##???????? #"" #??????? | | ??### "###???###??#### #?????????### ##??????? | | ?## # ## ##### #### ##??????????????????????? | | ## " " # # #???????????????????????? | | # #???????????????????????? | | # ## ##### ###???????????????????????? | | # #### ###???###?????????????????????????? | | #?# #????????????????????????????????? | | #### ##????????????????????????????????? | | ## ## # #?????????????????????????????????? | | #### #?????????????????????????????????? | | #??# # #????????????????????????????????? | | #??### ######????????????????????????????????? | | ##????## ##?????????????????????????????????????? | | ???????####??????????????????????????????????????? | | ?????????????????????????????????????????????????? | | ?????????????????????????????????????????????????? | | ?????????????????????????????????????????????????? | | ?????????????????????????????????????????????????? | | ?????????????????????????????????????????????????? | | ?????????????????????????????????????????????????? | | ?????????????????????????????????????????????????? | +----------------------------------------------------+ Best States ------------- Heat Dissipation 25 Energy Generation 15 Energy Capacity 200 Matter Stores 300 Matter Capacity 300 Sight Range 16 Terrain Scan Density 10 Evasion (%) 50 Targeting Accuracy 5 Item Schematics ----------------- None Robot Schematics ------------------ None Fabricated ------------ Nothing Alien Tech Used ----------------- None Achievements -------------- None Challenges ------------ None Game ------ Seed ReinforcedDirtyShotgun Manual? 0 Play Time 00:11:42 Cumulative 57.6 hours Start 2024.07.12 @ 01:47:09 End 2024.07.12 @ 02:00:15 Sessions 1 Manual Loads 0 Difficulty Rogue Special Mode None Game No. 155 Rogue 155 Adventurer 0 Explorer 0 Win Type - Total 0 Types 0/0/0/0/0/0/0/0/0 Lore% 22 Gallery% 41 Achievement% 26 Wizard Run 0 Options --------- Layout 0 ASCII 0 Keyboard 0 Movement Arrows Keybinds 0 Fullscreen 1 Font 12/Smallcaps Map View 38x28 Zoom Use 96% Tactical HUD 1 Map Filters NONE Filters NONE Steam SD RUN: 55121165-584c-4fa9-bd49-2d4ba41df92a